{"text_format":"3","workbook":"xlsx","n_sheets":1,"sheets":["Приложение 1"],"not_rendered":{"defined_names":2},"read":"whole","date_system":"1900"}

{"sheet":"Приложение 1","index":0,"n_rows":67,"n_cols":23,"rows_kept":67,"merged":[[2,0,2,22],[3,0,3,22],[5,0,6,0],[5,1,6,1],[5,2,6,2],[5,3,5,7],[5,8,5,10],[5,11,5,13],[5,14,6,14],[5,15,6,15],[5,16,5,21],[5,22,6,22],[6,5,6,7],[6,8,6,10],[6,11,6,13],[6,18,6,20],[8,0,8,22],[13,0,13,22],[26,0,26,22],[40,0,40,22],[45,0,45,22],[49,0,49,22],[53,0,53,22],[56,0,56,22],[59,0,59,1]]}
[{"$nulls":22},"Приложение 1"]
[{"$nulls":13},"Приложение 2",{"$nulls":6},"Приложение 2",null,"Таблица 1"]
["Отчет об исполнении целевых показателей муниципальной программы"]
[" города Усолье-Сибирское «Профилактика социально значимых заболеваний (туберкулез, ВИЧ/СПИД, ИППП) и социально негативных явлений (алкоголизм, табакокурение) на территории города Усолье-Сибирское» на 2019-2027 годы за 2025 год"]
[]
["№ п/п","Наименование целевого показателя","Ед. изм.","Значения  целевых показателей подпрограммы 3 муниципальной программы города Усолье-Сибирское \"Совершенствование  муниципального регулирования\"на 2015-2017 годы, утвержденной постановлением администрации города Усолье-Сибирское от 15.10.2014 года № 1807",{"$nulls":4},"Значения  целевых показателей подпрограммы 3 и подпрограммы 4 муниципальной программы города Усолье-Сибирское \"Совершенствование  муниципального регулирования\"на 2015-2017 годы, утвержденной постановлением администрации города Усолье-Сибирское от 15.10.2014 года № 1807 (с изменениями от 28.01.2015 г. № 106)",null,null,"Изменения значений целевых показателей",null,null,"Плановое значение на 2025 год","Фактическое значение за 2025 год","Отклонение фактического значения от планового",{"$nulls":5},"Обоснование причин отклонения\n +/- 5%"]
[{"$nulls":3},2013,"2014 (оценка)","плановый период",null,null,"плановый период",null,null,"плановый период",{"$nulls":4},"-/+",null,"плановый период",null,null,"%"]
[1,2,3,4,5,6,7,8,4,5,6,6,7,8,4,5,6,null,10,11,12,7,8]
["Муниципальная программа города Усолье-Сибирское «Совершенствование  муниципального регулирования» на 2015-2018 годы"]
["1","Качество управления муниципальными финансами","баллы",{"v":46070496.17,"d":"46,070,496.17"},{"v":32333663.28,"d":"32,333,663.28"},{"v":31964842.74,"d":"31,964,842.74"},{"v":35074171.68,"d":"35,074,171.68"},{"v":25332100,"d":"25,332,100.00"},{"v":33283178.52,"d":"33,283,178.52"},{"v":35481069.23,"d":"35,481,069.23"},{"v":30632095.28,"d":"30,632,095.28"},{"$f":"I10-F10","v":{"v":1318335.7800000012,"d":"1,318,335.78"}},{"$f":"J10-G10","v":{"v":406897.549999997,"d":"406,897.55"}},{"v":5299995.280000001,"d":"5,299,995.28"},"не менее 10"]
["2","Эффективность бюджетных расхо-дов города Усолье-Сибирское","баллы",{"v":35060895.05,"d":"35,060,895.05"},{"v":50105000,"d":"50,105,000.00"},{"v":37500000,"d":"37,500,000.00"},{"v":37500000,"d":"37,500,000.00"},{"v":37500000,"d":"37,500,000.00"},{"v":52008345.54,"d":"52,008,345.54"},{"v":52008000,"d":"52,008,000.00"},{"v":52008000,"d":"52,008,000.00"},{"$f":"I11-F11","v":{"v":14508345.54,"d":"14,508,345.54"}},{"v":14508000,"d":"14,508,000.00"},{"v":14508000,"d":"14,508,000.00"},"не менее 10"]
["3","Эффективность управления земельными ресурсами и муниципальной собственостью","%",100,100,100,100,100,100,100,100,{"v":0,"d":"0.00"},{"v":0,"d":"0.00"},{"v":0,"d":"0.00"},100]
["4","Открытость и эф-фективность дея-тельности админи-страции города Усолье-Сибирское","баллы","-","-",100,100,100,100,100,100,{"v":0,"d":"0.00"},{"v":0,"d":"0.00"},{"v":0,"d":"0.00"},"не менее 15"]
["Подпрограмма 1 «Управление муниципальными финансами города Усолье-Сибирское» на 2015-2018 годы"]
["1.1","Наличие нормативных правовых актов по организации составления проекта бюджета города (1 – наличие/ 0 – отсутствие)","ед.",{"v":46070496.17,"d":"46,070,496.17"},{"v":32333663.28,"d":"32,333,663.28"},{"v":31964842.74,"d":"31,964,842.74"},{"v":35074171.68,"d":"35,074,171.68"},{"v":25332100,"d":"25,332,100.00"},{"v":33283178.52,"d":"33,283,178.52"},{"v":35481069.23,"d":"35,481,069.23"},{"v":30632095.28,"d":"30,632,095.28"},{"$f":"I15-F15","v":{"v":1318335.7800000012,"d":"1,318,335.78"}},{"$f":"J15-G15","v":{"v":406897.549999997,"d":"406,897.55"}},{"v":5299995.280000001,"d":"5,299,995.28"},1]
["1.2","Удельный вес расходов бюджета города, формируемых в рамках целевых программ, в общем объеме расходов бюджета города в отчетном финансовом году","%",{"$nulls":11},"не менее 89"]
["1.3","Отношение прироста расходов бюджета города в отчетном финансовом году, не обеспеченных соответствующим приростом доходов бюджета города, к объему расходов бюджета города","коэфф.",{"$nulls":11},"≤0"]
["1.4","Отношение объема просроченной кредиторской задолженности к расходам бюджета города","%",{"$nulls":11},"≤0,5"]
["1.5","Проведение публичных слушаний по проекту бюджета города и годовому отчету об исполнении бюджета города в соответствии с установленным порядком (1 – наличие, 0 – отсутствие)","ед.",{"$nulls":11},1]
["1.6","Своевременное предоставление бюджетной (бухгалтерской) отчетности в Министерство финансов Иркутской области","коэфф.",{"$nulls":11},0]
["1.7","Исполнение бюджета города по доходам без учета безвозмездных поступлений к утвержденному уровню","%",{"$nulls":11},"не более  10"]
["1.8","Уровень муниципального долга","%",{"$nulls":11},"не более 100"]
["1.9","Экономия расходов на обслуживание муниципального долга","%",{"$nulls":11},"не менее   5"]
["1.10","Отсутствие просроченной задолженности по долговым обязательствам города Усолье-Сибирское (1 – отсутствие, 0 – наличие)","ед.",{"v":35060895.05,"d":"35,060,895.05"},{"v":50105000,"d":"50,105,000.00"},{"v":37500000,"d":"37,500,000.00"},{"v":37500000,"d":"37,500,000.00"},{"v":37500000,"d":"37,500,000.00"},{"v":52008345.54,"d":"52,008,345.54"},{"v":52008000,"d":"52,008,000.00"},{"v":52008000,"d":"52,008,000.00"},{"$f":"I24-F24","v":{"v":14508345.54,"d":"14,508,345.54"}},{"v":14508000,"d":"14,508,000.00"},{"v":14508000,"d":"14,508,000.00"},1]
["1.11","Удельный вес контрольных мероприятий (проверок), проведенных с нарушением сроков","%",100,100,100,100,100,100,100,100,{"v":0,"d":"0.00"},{"v":0,"d":"0.00"},{"v":0,"d":"0.00"},0,0,0,{"$nulls":4},{"v":0,"d":"0%"}]
["1.12","Доля исполненных представлений о ненадлежащем исполнении бюджета города (предписаний о нарушении требований бюджетного законодательства) к общему количеству представлений (предписаний), выданных по результатам контрольных мероприятий","%","-","-",100,100,100,100,100,100,{"v":0,"d":"0.00"},{"v":0,"d":"0.00"},{"v":0,"d":"0.00"},"не менее 90",100,"+10",{"$nulls":4},{"v":0.11,"d":"11%"}]
["Подпрограмма 2 «Повышение эффективности бюджетных расходов города Усолье-Сибирское» на 2015-2018 годы\n"]
["2.1","Отношение дефицита бюджета города к доходам без учета объема безвозмездных поступлений","%.",{"v":46070496.17,"d":"46,070,496.17"},{"v":32333663.28,"d":"32,333,663.28"},{"v":31964842.74,"d":"31,964,842.74"},{"v":35074171.68,"d":"35,074,171.68"},{"v":25332100,"d":"25,332,100.00"},{"v":33283178.52,"d":"33,283,178.52"},{"v":35481069.23,"d":"35,481,069.23"},{"v":30632095.28,"d":"30,632,095.28"},{"$f":"I28-F28","v":{"v":1318335.7800000012,"d":"1,318,335.78"}},{"$f":"J28-G28","v":{"v":406897.549999997,"d":"406,897.55"}},{"v":5299995.280000001,"d":"5,299,995.28"},"не более  10"]
["2.2","Рост просроченной кредиторской задолженности (да/нет)","ед.",{"$nulls":11},"нет"]
["2.3","Отношение объема просроченной кредиторской задолженности муниципальных учреждений к расходам бюджета","%.",{"$nulls":11},0]
["2.4","Наличие утвержденной методики формализованного прогнозирования доходов (да/нет)","ед.",{"$nulls":11},"нет"]
["2.5","Наличие утвержденного порядка и методики планирования бюджетных ассигнований (да/нет)",{"$nulls":12},"да"]
["2.6","Привлечение средств в бюджет города через обеспечение участия муниципалитета в реализации федеральных и областных целевых программ (да/нет)","ед.",{"$nulls":11},"да"]
["2.7","Удельный вес расходов бюджета города, формируемых в рамках целевых программ, в общем объеме расходов бюджета города","%",{"$nulls":11},"не менее 89"]
["2.8","Наличие перечня муниципальных программ (да/нет)","ед.",{"$nulls":11},"да"]
["2.9","Доля муниципальных учреждений, выполнивших установленные муниципальными заданиями показатели объема и качества муниципальных услуг","%",{"v":35060895.05,"d":"35,060,895.05"},{"v":50105000,"d":"50,105,000.00"},{"v":37500000,"d":"37,500,000.00"},{"v":37500000,"d":"37,500,000.00"},{"v":37500000,"d":"37,500,000.00"},{"v":52008345.54,"d":"52,008,345.54"},{"v":52008000,"d":"52,008,000.00"},{"v":52008000,"d":"52,008,000.00"},{"$f":"I36-F36","v":{"v":14508345.54,"d":"14,508,345.54"}},{"v":14508000,"d":"14,508,000.00"},{"v":14508000,"d":"14,508,000.00"},100]
["2.10","Доля муниципальных услуг, имеющих утвержденные стандарты качества","%",100,100,100,100,100,100,100,100,{"v":0,"d":"0.00"},{"v":0,"d":"0.00"},{"v":0,"d":"0.00"},100]
["2.11","Создание системы внутреннего финансового аудита (контроля) (да/нет)","ед","-","-",100,100,100,100,100,100,{"v":0,"d":"0.00"},{"v":0,"d":"0.00"},{"v":0,"d":"0.00"},"да"]
["2.12","Удельный вес  контрольных мероприятий по осуществлению аудита (контроля) главными распорядителями бюджетных средств, согласно установленному порядку  осуществления главными распорядителями бюджетных средств финансового аудита (контроля)  в отношении подведомственных муниципальных учреждений","%","-","-",100,100,100,100,100,100,{"v":0,"d":"0.00"},{"v":0,"d":"0.00"},{"v":0,"d":"0.00"},"не менее 90"]
["2.13","Размещение информации о муниципальных финансах (результатах деятельности органов местного самоуправления, муниципальных учреждений) в средствах массовой информации, на специализированном сайте  (да/нет)","ед","-","-",100,100,100,100,100,100,{"v":0,"d":"0.00"},{"v":0,"d":"0.00"},{"v":0,"d":"0.00"},"да"]
["Подпрограмма 3 \"Обеспечение эффективного управления и распоряжения земельными участками и муниципальным имуществом на территории муниципального образования \"город Усолье-Сибирское\"на 2015-2018 годы\n"]
["3.1","Объем доходов бюджета города от использования и продажи муниципального имущества","рубли",{"v":46070496.17,"d":"46,070,496.17"},{"v":32333663.28,"d":"32,333,663.28"},{"v":31964842.74,"d":"31,964,842.74"},{"v":35074171.68,"d":"35,074,171.68"},{"v":25332100,"d":"25,332,100.00"},{"v":33283178.52,"d":"33,283,178.52"},{"v":35481069.23,"d":"35,481,069.23"},{"v":30632095.28,"d":"30,632,095.28"},{"$f":"I42-F42","v":{"v":1318335.7800000012,"d":"1,318,335.78"}},{"$f":"J42-G42","v":{"v":406897.549999997,"d":"406,897.55"}},{"v":5299995.280000001,"d":"5,299,995.28"},"37 724 041,16"]
["3.2","Объем неналоговых доходов бюджета города от аренды и продажи земельных участков","рубли",{"v":35060895.05,"d":"35,060,895.05"},{"v":50105000,"d":"50,105,000.00"},{"v":37500000,"d":"37,500,000.00"},{"v":37500000,"d":"37,500,000.00"},{"v":37500000,"d":"37,500,000.00"},{"v":52008345.54,"d":"52,008,345.54"},{"v":52008000,"d":"52,008,000.00"},{"v":52008000,"d":"52,008,000.00"},{"$f":"I43-F43","v":{"v":14508345.54,"d":"14,508,345.54"}},{"v":14508000,"d":"14,508,000.00"},{"v":14508000,"d":"14,508,000.00"},{"v":52008345.54,"d":"52,008,345.54"}]
["3.3","Доля исполненных обязательств по владению и пользованию муниципальным имуществом","%",100,100,100,100,100,100,100,100,{"v":0,"d":"0.00"},{"v":0,"d":"0.00"},{"v":0,"d":"0.00"},100]
["3.4","Уровень эффективности реализации муниципальной подпрограммы","%","-","-",100,100,100,100,100,100,{"v":0,"d":"0.00"},{"v":0,"d":"0.00"},{"v":0,"d":"0.00"},100]
["Муниципальная программа города Усолье-Сибирское «Профилактика социально значимых заболеваний (туберкулез, ВИЧ/СПИД, ИППП) и социально негативных явлений (алкоголизм, табакокурение) на территории города Усолье-Сибирское» на 2019-2027 годы\n\n"]
["1.","Количество информационных каналов передачи информации о доступных мерах профилактики социально значимых заболеваний.","ед.",{"$nulls":5},"не менее 5","не менее 5","не менее 5",{"$nulls":3},3,3,"0",{"$nulls":4},0]
["2.","Количество информационных каналов передачи информации о доступных мерах профилактики социально негативных явлений.","ед.",{"$nulls":11},2,2,"0",{"$nulls":4},0]
["3.","Количество вновь привлеченных врачей-специалистов для работы в учреждениях здравоохранения города Усолье-Сибирское, получивших дополнительную социальную поддержку.","ед.",{"$nulls":11},4,4,0,{"$nulls":4},0]
["Подпрограмма 1. «Профилактика социально значимых заболеваний: туберкулез, ВИЧ/СПИД, ИППП» на 2019 – 2027 годы"]
["1.","Количество информационных каналов передачи информации о доступных мерах профилактики туберкулеза.","ед.",{"$nulls":11},3,3,0,0,0,0,0,0]
["2.","Количество информационных каналов передачи информации о доступных мерах профилактики ВИЧ/СПИДа.","ед.",{"$nulls":11},3,3,0,0,0,0,0,0]
["3.","Количество информационных каналов передачи информации о доступных мерах профилактики ИППП.","ед.",{"$nulls":11},1,1,0,0,0,0,0,0]
["Подпрограмма 2. «Профилактика социально негативных явлений: алкоголизм, табакокурение» на 2019 - 2027 годы"]
["1.","Количество информационных каналов передачи информации о доступных мерах профилактики алкоголизма.","ед.",{"$nulls":11},2,2,0,{"$nulls":4},0]
["2.","Количество информационных каналов передачи информации о доступных мерах профилактики табакокурения.","ед.",{"$nulls":11},2,2,0,{"$nulls":4},0]
["Подпрограмма 3. «Дополнительная социальная поддержка кадров здравоохранения города Усолье-Сибирское» на 2019 – 2027 годы"]
["1.","Количество вновь привлеченных врачей-специалистов для работы в учреждениях здравоохранения города Усолье-Сибирское, получивших дополнительную социальную поддержку.","ед.",{"$nulls":11},4,4,0,0,0,0,0,0]
[]
["Мэр города ",{"$nulls":21},"М.В.Торопкин"]
[]
["Руководитель аппарата администрации города                                                            С.К. Абрамова"]
["Заместитель руководителя аппарата Думы                                                                    Е.А. Бухрякова"]
["Председатель КСП                                                                                                              Е.А. Налетова"]
[]
["Подготовил: Т.А. Меньшова"]
["т. 6-42-41"]